Cogmind - Beta 13 X2 @@@ ROGUE MODE // 2024.01.09 @ 20:03:24 Player: Boris Result: Destroyed self with Mini Grenade Launcher Performance ------------- Evolutions (0) 0 Regions Visited (2) 400 Robots Destroyed (26) 130 Value Destroyed (563) 563 Prototype IDs (0) 0 Alien Tech Used (0) 0 Bonus (74) 74 TOTAL SCORE: 1167 Bonus ------- Follower Combat Kills 74 Cogmind --------- Core Integrity 0/250 Matter 270/300 Energy 250/250 System Corruption 1% Temperature Cool (0) Movement Treading (160) Location -10/Mines Parts ------- > --- POWER (1) -------- Ion Engine > --- PROPULSION (2) --- Light Treads Light Treads > --- UTILITY (2) ------ Large Storage Unit Seismic Detector > --- WEAPON (2) ------- Assault Rifle Mini Grenade Launcher > --- INVENTORY (15) --- Ion Engine Light Treads Carbon-fiber Leg Carbon-fiber Leg Improved Heat Sink Large Storage Unit High-capacity Matter Pod (200) Makeshift Terrain Scanner Medium Laser Autogun Autogun Autogun Autogun Mini Grenade Launcher Datajack Peak State ------------ > --- POWER ------------ Ion Engine > --- PROPULSION ------- Light Treads Light Treads > --- UTILITY ---------- Large Storage Unit Seismic Detector > --- WEAPON ----------- Assault Rifle Mini Grenade Launcher > --- INVENTORY -------- Ion Engine Light Treads Carbon-fiber Leg Carbon-fiber Leg Improved Heat Sink Large Storage Unit High-capacity Matter Pod Makeshift Terrain Scanner Medium Laser Autogun Autogun Autogun Autogun Mini Grenade Launcher Datajack [Rating: 11] Favorites ----------- Power Ion Engine Engine Ion Engine Propulsion Light Treads Treads Light Treads Utility Seismic Detector Device Seismic Detector Storage Large Storage Unit Weapon Assault Rifle Energy Gun Medium Laser Ballistic Gun Assault Rifle Launcher Mini Grenade Launcher Special Weapon Mining Laser Build | -11 -10 -10 ------- Run | Yrd Mat Min Slots Evolved . | . . . Power . | . . . Propulsion . | . . . Utility . | . . . Weapon . | . . . Parts Attached 21 | 6 6 9 Power 1 | 1 . . Engine 1 | 1 . . Core . | . . . Reactor . | . . . Propulsion 5 | 2 1 2 Treads 5 | 2 1 2 Leg . | . . . Wheel . | . . . Hover . | . . . Flight . | . . . Utility 4 | 1 3 . Device 2 | . 2 . Storage 2 | 1 1 . Processor . | . . . Hackware . | . . . Protection . | . . . Artifact . | . . . Weapon 11 | 2 2 7 Energy Gun 4 | 1 . 3 Energy Cannon . | . . . Ballistic Gun 2 | 1 1 . Ballistic Cannon . | . . . Launcher 4 | . . 4 Special Weapon 1 | . 1 . Impact Weapon . | . . . Slashing Weapon . | . . . Piercing Weapon . | . . . Special Melee Weapon . | . . . Unidentified Prototypes . | . . . Parts Lost . | . . . Power . | . . . Propulsion . | . . . Utility . | . . . Weapon . | . . . Highest Loss Streak . | . . . To Critical Strikes . | . . . Average Slot Usage (%) 99 | . 99 100 Engine 14 | . 14 14 Treads 28 | . 28 28 Device 13 | . 13 14 Storage 14 | . 14 14 Energy Gun 13 | . 14 11 Ballistic Gun 13 | . 13 14 Naked Turns . | . . . Heaviest Build 30 | 14 30 30 Greatest Support 40 | 40 40 40 Greatest Overweight (x) . | . . . Average Overweight (x) . | . . . Largest Inventory Capacity 15 | 8 15 15 Average Capacity 13 | 5 13 15 Most Carried 15 | 5 15 15 Average Carried 11 | 2 10 14 Final Capacity 15 | 8 15 15 Final Carried 15 | 4 15 15 Class Distribution -------------------- 100% | Mutant Dominant Class ---------------- Mutant | -10/Materials Mutant | -10/Mines Resources | -11 -10 -10 ----------- Run | Yrd Mat Min Matter Collected 648 | 290 146 212 Remotely . | . . . Salvage Created 777 | 117 354 306 Parts 51 | 9 22 20 Haulers Intercepted . | . . . Recyclers Shooed 2 | . 2 . Parts Field Recycled . | . . . Retrieved Matter . | . . . Parts Self-Destructed . | . . . Prevented . | . . . Kills | -11 -10 -10 ------- Run | Yrd Mat Min Combat Hostiles Destroyed 18 | . 6 12 Guns 9 | . 5 4 AOE 8 | . . 8 Classes Destroyed 6 | 2 3 1 Tunneler 3 | 3 . . Recycler 2 | 1 . 1 Operator 1 | . 1 . Watcher 2 | . 2 . Swarmer 8 | . . 8 Grunt 10 | . 6 4 Best Kill Streak 3 | 2 3 3 Combat Bots Only 3 | . 3 3 Max Kills in Single Turn 3 | 1 1 3 Gunslinging . | . . . Exploded 3 | . . 3 Melee . | . . . Uniques/NPCs Destroyed . | . . . Combat | -11 -10 -10 -------- Run | Yrd Mat Min Hostile Shots Fired 81 | . 29 52 Missed 22 | . 11 11 Damage Taken 901 | . 232 669 Core 261 | . 114 147 Absorbed by Shields . | . . . Core Remaining (%) 100 | 100 . . Volleys Fired 75 | 10 32 33 Largest 2 | 2 2 2 Hottest 150 | 70 150 70 Shots Fired 144 | 20 64 60 Gun 136 | 20 62 54 Cannon . | . . . Launcher 6 | . . 6 Special 2 | . 2 . Kinetic 67 | 10 30 27 Thermal 71 | 10 34 27 Explosive 6 | . . 6 Electromagnetic . | . . . Robot Hit Streak 9 | 3 9 7 Robot Miss Streak 4 | 3 3 4 Penetration Max . | . . . Secondary Targets 1 | . . 1 Max Gunslinging Chain 1 | . . 1 Shots Hit Robots 83 | 12 31 40 Core Hits 42 | 5 13 24 Critical Kills 2 | . 1 1 Critical Parts Destroyed . | . . . Critical Strikes 9 | 1 5 3 Burn 7 | 1 4 2 Destroy 2 | . 1 1 Melee Attacks . | . . . Impact . | . . . Slashing . | . . . Piercing . | . . . Sneak Attacks . | . . . Combat Hostiles . | . . . Follow-up Attacks . | . . . Damage Inflicted 1674 | 144 442 1088 Guns 1072 | 144 439 489 Cannons . | . . . Explosions 574 | . . 574 Melee . | . . . Ramming 28 | . 3 25 Kinetic 475 | 57 171 247 Thermal 597 | 87 268 242 Explosive 574 | . . 574 Electromagnetic . | . . . Impact . | . . . Slashing . | . . . Piercing . | . . . Highest Corruption 1 | . 1 1 Average Corruption 1 | . 1 1 Corruption Purged . | . . . Corruption Blocked . | . . . Effects 11 | . 4 7 Message Errors 2 | . . 2 Matter Fused 3 | . . 3 Heat Flow Errors 3 | . 1 2 Data Loss (minor) 2 | . 2 . Alerts 1 | . 1 . Overload Shots . | . . . Overflow Damage 78 | . . 78 Projectiles . | . . . Explosions 78 | . . 78 Melee . | . . . Knockbacks 2 | . . 2 Impact 2 | . . 2 Kinetic . | . . . Secondary . | . . . Self-Inflicted Damage 125 | . . 125 Shots 3 | . . 3 Rammed 4 | . 1 3 Targets Rammed 5 | . 1 4 Kicked . | . . . Crushed 1 | . . 1 Highest Temperature 249 | 45 183 249 Average Temperature 58 | 15 50 79 Received Heat Transfer 375 | . 132 243 Siege Activations . | . . . Robots Corrupted . | . . . Combat Hostiles . | . . . Parts Fried . | . . . Impact Corruptions . | . . . Robots Melted 1 | . 1 . Combat Hostiles 1 | . 1 . Parts Melted 6 | . 5 1 Heat Transferred 2257 | 333 1073 851 Parts Sabotaged . | . . . Parts Stolen . | . . . Parts Stripped . | . . . Power Chain Reactions . | . . . Missiles Intercepted . | . . . Alert | -11 -10 -10 ------- Run | Yrd Mat Min Peak Influence 339 | 20 169 339 Initial 13 | . 13 . Average 108 | 10 58 195 Maximum Alert Level 1 | . . 1 Low Security (%) 78 | 100 100 46 Level 1 21 | . . 53 Level 2 . | . . . Level 3 . | . . . Level 4 . | . . . Level 5 . | . . . High Security . | . . . Max Security . | . . . Squads Dispatched 2 | . 2 . Investigation 1 | . 1 . Extermination . | . . . Reinforcement 1 | . 1 . Assault . | . . . Garrison . | . . . Intercept . | . . . Searches Triggered . | . . . Construction Impeded . | . . . Haulers Reinforced . | . . . Active Scanning Responses . | . . . Cargo Convoy Interrupts . | . . . Stealth | -11 -10 -10 --------- Run | Yrd Mat Min Distress Signals . | . . . Communications Jammed . | . . . Distress Signals . | . . . Times Spotted 33 | . 13 20 Peak Tracking Total 3 | . 3 3 Tactical Retreats 2 | . . 2 Traps | -11 -10 -10 ------- Run | Yrd Mat Min Traps Triggered 1 | . 1 . Indirectly . | . . . Trap Hack Attempts . | . . . Triggered . | . . . Disarmed . | . . . Reprogrammed . | . . . Reused . | . . . Traps Extracted . | . . . Installed . | . . . Triggered 1 | . . 1 Machines | -11 -10 -10 ---------- Run | Yrd Mat Min Machines Disabled 1 | . . 1 Max in Single Turn . | . . . Machines Repaired . | . . . Machines Dismantled . | . . . Machines Sabotaged . | . . . Overloaded Fab Kills . | . . . Hacking | -11 -10 -10 --------- Run | Yrd Mat Min Machines Accessed 4 | . 4 . Terminals 3 | . 3 . Fabricators . | . . . Repair Stations . | . . . Recycling Units 1 | . 1 . Scanalyzers . | . . . Garrison Access . | . . . Total Hacks 13 | . 13 . Successful 7 | . 7 . Failed 6 | . 6 . Catastrophic 1 | . 1 . Database Lockouts . | . . . Manual 11 | . 11 . Terminals 11 | . 11 . Fabricators . | . . . Repair Stations . | . . . Recycling Units 2 | . 2 . Scanalyzers . | . . . Garrison Access . | . . . Terminal Hacks 4 | . 4 . Robot Analysis 2 | . 2 . Branch Access Points 1 | . 1 . Hauler Manifests 1 | . 1 . Fabricator Hacks . | . . . Repair Station Hacks . | . . . Recycling Unit Hacks 1 | . 1 . Retrieve Components 1 | . 1 . Scanalyzer . | . . . Garrison Access Hacks . | . . . Unauthorized Hacks 2 | . 2 . Terminals 1 | . 1 . Botnet 1 | . 1 . Fabricators . | . . . Repair Stations . | . . . Recycling Units 1 | . 1 . Tunnel 1 | . 1 . Scanalyzers . | . . . Garrison Access . | . . . Data Cores Recovered . | . . . Used . | . . . Hacking Detections 3 | . 3 . Full Trace Events . | . . . Feedback Events . | . . . Feedback Blocked . | . . . Robot Schematics Acquired . | . . . Robots Built . | . . . Authchips . | . . . Time . | . . . Total Robot Build Rating . | . . . Part Schematics Acquired . | . . . Parts Built . | . . . Authchips . | . . . Time . | . . . Total Part Build Rating . | . . . Parts Repaired . | . . . Time . | . . . Parts Recycled . | . . . Recycled Matter . | . . . Retrieved Matter . | . . . Retrieved Components 6 | . 6 . Parts Scanalyzed . | . . . Part Schematics Acquired . | . . . Parts Damaged . | . . . Bothacking | -11 -10 -10 ------------ Run | Yrd Mat Min Used RIF Installer . | . . . Robots Hacked . | . . . Non-combat . | . . . Combat . | . . . Robot Hacks Applied . | . . . Relay Couplers Released . | . . . Fabnet Peak Effective % . | . . . Robots Rewired . | . . . Allies Hacked . | . . . Hacks Repelled . | . . . Allies | -11 -10 -10 -------- Run | Yrd Mat Min Total Allies 2 | . . 2 Largest Group 2 | . . 2 Highest-Rated Group 50 | . . 50 Highest-Rated Ally 31 | . . 31 Total Orders . | . . . Ally Attacks 16 | . . 16 Total Damage 276 | . . 276 Kills 4 | . . 4 Allies Corrupted . | . . . Allies Melted . | . . . Intel | -11 -10 -10 ------- Run | Yrd Mat Min Robot Analysis Total 2 | . 2 . Derelict Logs Recovered . | . . . Drone Launches . | . . . Drone Recoveries . | . . . Exploration | -11 -10 -10 ------------- Run | Yrd Mat Min Turns Passed 1744 | 147 910 687 Spaces Moved 875 | 78 450 347 Core 20 | 20 . . Treads 855 | 58 450 347 Legs . | . . . Wheels . | . . . Hover . | . . . Flight . | . . . Fastest Speed 50 | 50 160 160 Average Speed 157 | 131 160 160 Slowest Speed 160 | 160 160 160 Overloaded Moves . | . . . Propulsion Burnouts . | . . . Robots Hopped . | . . . Cave-ins Triggered . | . . . Exploration Rate (%) 49 | 4 76 68 Regions Visited 2 Branch Regions 1 Pre-discovered Areas 1 | . 1 . Known Exits Taken 1 | . 1 . Unknown Exits Taken 1 | 1 . . Scrap Searched . | . . . Spaces Dug 27 | . 2 25 Terrain Destroyed 61 | . 2 59 Melee . | . . . Projectile 2 | . 2 . AOE 59 | . . 59 Terrain Rammed . | . . . Walls Destroyed . | . . . Machines Disabled . | . . . Actions | -11 -10 -10 --------- Run | Yrd Mat Min Total 1089 | 101 573 415 Wait 75 | . 61 14 Move 873 | 77 449 347 Hop . | . . . Pick Up 29 | 8 17 4 Fast Attach 3 | 2 1 . Attach 5 | 4 1 . Detach 1 | . 1 . Swap 13 | . 4 9 Drop 10 | . 6 4 Fire 75 | 10 32 33 Melee . | . . . Ram . | . . . Kick . | . . . Crush 5 | . 1 4 Escape Stasis . | . . . Rewire . | . . . Trap . | . . . Miscellaneous . | . . . Route ------- -11/Scrapyard -10/Materials (discovered 4 exits: [*Mat x3] / *Min) -10/Mines (discovered 1 exit: [*Mat]) History --------- Turn | Location | Event 7 | -11/Scrapyard | Discovered new exit (range 16) 148 | -11/Scrapyard | Entered Materials 288 | -10/Materials | Discovered new exit (range 7) 324 | -10/Materials | Build established: Mutant 520 | -10/Materials | Identified exit to Mines 532 | -10/Materials | Discovered new exit (range 5) 662 | -10/Materials | Discovered new exit (range 5) 1058 | -10/Materials | Entered Mines 1102 | -10/Mines | Discovered new exit (range 7) 1494 | -10/Mines | Core integrity fell below 50% 1699 | -10/Mines | Core integrity fell below 20% 1745 | -10/Mines | Destroyed self with Mini Grenade Launcher Last Messages --------------- 01554_ K-01 Serf cleans the Laser Drill. 01563_ G-47 Trooper destroyed. 01566_ Acquired 30 matter. 01584_ System corrupted: Matter fused (-8). 01684_ Acquired 8 matter. 01689_ Acquired 3 matter. 01692_ Acquired 2 matter. 01697_ G-47 Trooper suffers critical hit (Burn). 01704_ G-47 Trooper heat damages Imp. Heat Sink. 01706_ Destroyed Imp. Heat Sink. 01708_ G-47 Trooper overheating. 01709_ G-47 Trooper suffers critical hit (Destroy). 01709_ Aluminum Leg melted. 01709_ G-47 Trooper destroyed. 01710_ K-01 Serf collects debris. 01714_ Dropped Lgt. Treads. 01716_ Acquired Mak. Terrain Scanner. 01717_ Acquired 29 matter. 01743_ S-10 Pest destroyed. 01745_ Destroyed Flight Unit. Map ----- +----------------------------------------------------+ | ???# ### #### * ##?####### #####??????# #?# | | ???# #### #?### #???????# #??????????# #?# | | ???# ### #???## ####????# #??????????# #?# | | ???# ## ####### #????# #??????????# ### | | ???# #?### ## #????# #??????????# | | ???##### ## ### #???# ### #??### #??????????##### | | ???????##### #?# #???# #?# #??# #?????????????# | | ???????????# #?# #???# #?# #??# ###?????????????# | | ???????????# #?# ##### ### #??# #??????????????? | | ???????????# ### # #??# #??????????????### | | ???????????# ####### ####=#????????????????? | | ???????????## #### #?????# =*==#????????????????? | | ????????????# #??# #?????###### #????????????????? | | ????????????# #?## ##??????####%####?????????????? | | ????????????# ### ##??#### #?????????????? | | ????????????# #??# """ #?????????????? | | ????????????## #??# # """ #?????????????? | | ?????????????#### #??# # """ ???????????? | | ????????????????## ##??# # ###???????????? | | ?????????????????####???# # #?????????????? | | ????????????????????????# ###### ##?????????????? | | ????????????????????????# #????? #??????????????? | | ???????????????????????## #????? #??????????????? | | ??????????????????????## #??????#??????????????? | | ??????????????????????# # #???????????????????? | | ??????????????????????# @ #???????????????????? | | ?????????????????????# #?????????????????? | | ?????????????????????# #???????????????????? | | ?????????????????????# s ##???????????????????? | | ?????????????????????# ????????????????????? | | ????????????????????? ????????????????????? | | ????????????????????### ???????????????????? | | ??###?????????????????### s #???????????????????? | | ?## #??????????????????## ##???????????????????? | | ?# ########???#???????? #????????????????????? | | ?# # ### ### ##?? #????????????????????? | | ??# # !!! #?? #????????????????????? | | ???# < !!!! ????????????????????? | | ???## ! !! ####### ????????????????????? | | ????# !!! #???????????? #????????????????????? | | ????# #????????????##?????????????????????? | | ????## ### ###???????????????????????????????????? | | ?????###?# #?????????????????????????????????????? | | ?????????# #?????????????????????????????????????? | | ?????????# #?????????????????????????????????????? | | ?????????# #?????????????????????????????????????? | | ?????????# #?????????????????????????????????????? | | ????###### #?????????????????????????????????????? | | ????# #?????????????????????????????????????? | | ????# ### ##???????#?????????????????????????????? | +----------------------------------------------------+ Best States ------------- Heat Dissipation 25 Energy Generation 10 Energy Capacity 250 Matter Stores 300 Matter Capacity 300 Sight Range 16 Terrain Scan Density 10 Evasion (%) 50 Recoil Reduction 2 Item Schematics ----------------- None Robot Schematics ------------------ None Fabricated ------------ Nothing Alien Tech Used ----------------- None Achievements -------------- None Challenges ------------ None Game ------ Seed CannonLightpackInterpreter Manual? 0 Play Time 00:11:33 Cumulative 395.6 hours Start 2024.01.09 @ 19:51:34 End 2024.01.09 @ 20:03:24 Sessions 1 Manual Loads 0 Difficulty Rogue Special Mode None Game No. 144 Rogue 129 Adventurer 15 Explorer 0 Win Type - Total 25 Types 7/1/7/2/2/0/4/1/1 Lore% 87 Gallery% 89 Achievement% 83 Wizard Run 0 Options --------- ASCII 0 Keyboard 0 Movement Numpad Keybinds 0 Fullscreen 1 Font 18/SmallcapsGlow Map View 76x50 Zoom Use 0% Tactical HUD 1 Map Filters NONE Filters NONE Steam 1 RUN: 38e7efb5-dfd2-4cd6-82a9-c42edbf3c1d4